Workbook

Sheet Selection intensity calulator
B4: proportion selected | C4: p | D4: 10.00%
D6: Infinite population size | G6: Finite Population Size = | J6: 1000
B7: Selection threshold | C7: x | D7: =-NORMSINV(D4) -> 1.282
B8: height at threshold | C8: z | D8: =EXP(-0.5*(D7^2))/SQRT(2*PI()) -> 0.1755
B9: Selection intensity | C9: i | D9: =D8/D4 -> 1.755 | G9: Corrected for population size | J9: =D9-(J6-J6*D4)/(2*D4*J6*((J6+1)*D9)) -> 1.752
B12: variance reduction | C12: i(i-x) | D12: =D9*(D9-D7) -> 0.8309
B13: variance of selected group | D13: =1-D12 -> 0.1691
B14: variance in true BV | D14: =(1-D12*C15*C15) -> 0.3270
B15: …………...for accuracy = | C15: 0.9
A100: -3.5 | B100: 0.000872682695 | C100: =D7 -> 1.2816 | D100: 0
A101: -3.4 | B101: 0.001232219168 | C101: =D7 -> 1.2816 | D101: =VLOOKUP(C101,A100:B170,2,TRUE)-0.01 -> 0.18418605
A102: -3.3 | B102: 0.001722568939 | C102: =D9 -> 1.7550 | D102: 0.00000000
A103: -3.2 | B103: 0.002384088201 | C103: =D9 -> 1.7550 | D103: =VLOOKUP(C103,A100:B170,2,TRUE)-0.01 -> 0.08404908
A104: -3.1 | B104: 0.003266819056
A105: -3 | B105: 0.004431848412
A106: -2.9 | B106: 0.00595253242
A107: -2.8 | B107: 0.007915451583
A108: -2.7 | B108: 0.01042093481
A109: -2.6 | B109: 0.01358296923
A110: -2.5 | B110: 0.01752830049
A111: -2.4 | B111: 0.02239453029
A112: -2.3 | B112: 0.02832703774
A113: -2.2 | B113: 0.03547459285
A114: -2.1 | B114: 0.04398359598
A115: -2 | B115: 0.05399096651
A116: -1.9 | B116: 0.06561581477
A117: -1.8 | B117: 0.0789501583
A118: -1.7 | B118: 0.09404907738
A119: -1.6 | B119: 0.1109208347
A120: -1.5 | B120: 0.1295175957
A121: -1.4 | B121: 0.1497274656
A122: -1.3 | B122: 0.171368592
A123: -1.2 | B123: 0.194186055
A124: -1.1 | B124: 0.217852177
A125: -1 | B125: 0.2419707245
A126: -0.9 | B126: 0.2660852499
A127: -0.8 | B127: 0.2896915528
A128: -0.7 | B128: 0.3122539334
A129: -0.6 | B129: 0.3332246029
A130: -0.5 | B130: 0.3520653268
A131: -0.4 | B131: 0.3682701403
A132: -0.3 | B132: 0.3813878155
A133: -0.2 | B133: 0.391042694
A134: -0.1 | B134: 0.3969525475
A135: 0 | B135: 0.3989422804
A136: 0.1 | B136: 0.3969525475
A137: 0.2 | B137: 0.391042694
A138: 0.3 | B138: 0.3813878155
A139: 0.4 | B139: 0.3682701403
A140: 0.5 | B140: 0.3520653268
A141: 0.6 | B141: 0.3332246029
A142: 0.7 | B142: 0.3122539334
A143: 0.8 | B143: 0.2896915528
A144: 0.9 | B144: 0.2660852499
A145: 1 | B145: 0.2419707245
A146: 1.1 | B146: 0.217852177
A147: 1.2 | B147: 0.194186055
A148: 1.3 | B148: 0.171368592
A149: 1.4 | B149: 0.1497274656
A150: 1.5 | B150: 0.1295175957
A151: 1.6 | B151: 0.1109208347
A152: 1.7 | B152: 0.09404907738
A153: 1.8 | B153: 0.0789501583
A154: 1.9 | B154: 0.06561581477
A155: 2 | B155: 0.05399096651
A156: 2.1 | B156: 0.04398359598
A157: 2.2 | B157: 0.03547459285
A158: 2.3 | B158: 0.02832703774
A159: 2.4 | B159: 0.02239453029
A160: 2.5 | B160: 0.01752830049
A161: 2.6 | B161: 0.01358296923
A162: 2.7 | B162: 0.01042093481
A163: 2.8 | B163: 0.007915451583
A164: 2.9 | B164: 0.00595253242
A165: 3 | B165: 0.004431848412
A166: 3.1 | B166: 0.003266819056
A167: 3.2 | B167: 0.002384088201
A168: 3.3 | B168: 0.001722568939
A169: 3.4 | B169: 0.001232219168
A170: 3.5 | B170: 0.000872682695

Sheet selection intensity tables
C1: Selection Intensity Table
B2: of a large sample truncated standard normal distribution, giving the truncation point
B3: and the average value of the selected group for a certain selected percentage
A5: % | B5: truncation | C5: selection | E5: % | F5: truncation | G5: selection | I5: % | J5: truncation | K5: selection
A6: selected | B6: point (x) | C6: intensity (i) | E6: selected | F6: point (x) | G6: intensity (i) | I6: selected | J6: point (x) | K6: intensity (i)
A7: 0.01 | B7: 3.719 | C7: 3.959 | E7: 1.0 | F7: 2.326 | G7: 2.665 | I7: 20 | J7: 0.842 | K7: 1.400
A8: 0.02 | B8: 3.540 | C8: 3.789 | E8: 1.2 | F8: 2.257 | G8: 2.603 | I8: 21 | J8: 0.806 | K8: 1.372
A9: 0.03 | B9: 3.432 | C9: 3.687 | E9: 1.4 | F9: 2.197 | G9: 2.549 | I9: 22 | J9: 0.772 | K9: 1.346
A10: 0.04 | B10: 3.353 | C10: 3.613 | E10: 1.6 | F10: 2.144 | G10: 2.502 | I10: 23 | J10: 0.739 | K10: 1.320
A11: 0.05 | B11: 3.291 | C11: 3.554 | E11: 1.8 | F11: 2.097 | G11: 2.459 | I11: 24 | J11: 0.706 | K11: 1.295
A12: 0.06 | B12: 3.239 | C12: 3.506 | E12: 2.0 | F12: 2.054 | G12: 2.421 | I12: 25 | J12: 0.675 | K12: 1.271
A13: 0.07 | B13: 3.195 | C13: 3.465 | E13: 2.2 | F13: 2.014 | G13: 2.386 | I13: 26 | J13: 0.643 | K13: 1.248
A14: 0.08 | B14: 3.156 | C14: 3.428 | E14: 2.4 | F14: 1.977 | G14: 2.353 | I14: 27 | J14: 0.613 | K14: 1.225
A15: 0.09 | B15: 3.121 | C15: 3.396 | E15: 2.6 | F15: 1.943 | G15: 2.323 | I15: 28 | J15: 0.583 | K15: 1.202
A16: 0.10 | B16: 3.090 | C16: 3.367 | E16: 2.8 | F16: 1.911 | G16: 2.295 | I16: 29 | J16: 0.553 | K16: 1.180
E17: 3.0 | F17: 1.881 | G17: 2.268 | I17: 30 | J17: 0.524 | K17: 1.159
A18: 0.12 | B18: 3.036 | C18: 3.316 | E18: 3.2 | F18: 1.852 | G18: 2.243 | I18: 31 | J18: 0.496 | K18: 1.138
A19: 0.14 | B19: 2.989 | C19: 3.273 | E19: 3.4 | F19: 1.825 | G19: 2.219 | I19: 32 | J19: 0.468 | K19: 1.118
A20: 0.16 | B20: 2.948 | C20: 3.235 | E20: 3.6 | F20: 1.799 | G20: 2.197 | I20: 33 | J20: 0.440 | K20: 1.097
A21: 0.18 | B21: 2.911 | C21: 3.201 | E21: 3.8 | F21: 1.774 | G21: 2.175 | I21: 34 | J21: 0.413 | K21: 1.078
A22: 0.20 | B22: 2.878 | C22: 3.170 | E22: 4.0 | F22: 1.751 | G22: 2.154 | I22: 35 | J22: 0.385 | K22: 1.058
A23: 0.22 | B23: 2.848 | C23: 3.142 | E23: 4.2 | F23: 1.728 | G23: 2.135 | I23: 36 | J23: 0.359 | K23: 1.039
A24: 0.24 | B24: 2.820 | C24: 3.117 | E24: 4.4 | F24: 1.706 | G24: 2.116 | I24: 37 | J24: 0.332 | K24: 1.021
A25: 0.26 | B25: 2.794 | C25: 3.093 | E25: 4.6 | F25: 1.685 | G25: 2.097 | I25: 38 | J25: 0.306 | K25: 1.002
A26: 0.28 | B26: 2.770 | C26: 3.071 | E26: 4.8 | F26: 1.665 | G26: 2.080 | I26: 39 | J26: 0.279 | K26: 0.984
A27: 0.30 | B27: 2.748 | C27: 3.050 | E27: 5.0 | F27: 1.645 | G27: 2.063 | I27: 40 | J27: 0.253 | K27: 0.966
A28: 0.32 | B28: 2.727 | C28: 3.030 | I28: 41 | J28: 0.228 | K28: 0.948
A29: 0.34 | B29: 2.707 | C29: 3.012 | E29: 5.0 | F29: 1.645 | G29: 2.063 | I29: 42 | J29: 0.202 | K29: 0.931
A30: 0.36 | B30: 2.687 | C30: 2.994 | E30: 5.5 | F30: 1.598 | G30: 2.023 | I30: 43 | J30: 0.176 | K30: 0.914
A31: 0.38 | B31: 2.669 | C31: 2.978 | E31: 6.0 | F31: 1.555 | G31: 1.985 | I31: 44 | J31: 0.151 | K31: 0.896
A32: 0.40 | B32: 2.652 | C32: 2.962 | E32: 6.5 | F32: 1.514 | G32: 1.951 | I32: 45 | J32: 0.126 | K32: 0.880
A33: 0.42 | B33: 2.636 | C33: 2.947 | E33: 7.0 | F33: 1.476 | G33: 1.918 | I33: 46 | J33: 0.100 | K33: 0.863
A34: 0.44 | B34: 2.620 | C34: 2.932 | E34: 7.5 | F34: 1.440 | G34: 1.887 | I34: 47 | J34: 0.075 | K34: 0.846
A35: 0.46 | B35: 2.605 | C35: 2.918 | E35: 8.0 | F35: 1.405 | G35: 1.858 | I35: 48 | J35: 0.050 | K35: 0.830
A36: 0.48 | B36: 2.590 | C36: 2.905 | E36: 8.5 | F36: 1.372 | G36: 1.831 | I36: 49 | J36: 0.025 | K36: 0.814
A37: 0.50 | B37: 2.576 | C37: 2.892 | E37: 9.0 | F37: 1.341 | G37: 1.804 | I37: 50 | J37: 0.000 | K37: 0.798
E38: 9.5 | F38: 1.311 | G38: 1.779
A39: 0.50 | B39: 2.576 | C39: 2.892 | E39: 10.0 | F39: 1.282 | G39: 1.755 | I39: 60 | J39: -0.253 | K39: 0.644
A40: 0.55 | B40: 2.543 | C40: 2.862 | I40: 70 | J40: -0.524 | K40: 0.497
A41: 0.60 | B41: 2.512 | C41: 2.834 | E41: 11 | F41: 1.227 | G41: 1.709 | I41: 80 | J41: -0.842 | K41: 0.350
A42: 0.65 | B42: 2.484 | C42: 2.808 | E42: 12 | F42: 1.175 | G42: 1.667 | I42: 90 | J42: -1.282 | K42: 0.195
A43: 0.70 | B43: 2.457 | C43: 2.784 | E43: 13 | F43: 1.126 | G43: 1.627
A44: 0.75 | B44: 2.432 | C44: 2.761 | E44: 14 | F44: 1.080 | G44: 1.590
A45: 0.80 | B45: 2.409 | C45: 2.740 | E45: 15 | F45: 1.036 | G45: 1.554
A46: 0.85 | B46: 2.387 | C46: 2.720 | E46: 16 | F46: 0.995 | G46: 1.521
A47: 0.90 | B47: 2.366 | C47: 2.701 | E47: 17 | F47: 0.954 | G47: 1.489
A48: 0.95 | B48: 2.346 | C48: 2.683 | E48: 18 | F48: 0.915 | G48: 1.458
A49: 1.00 | B49: 2.326 | C49: 2.665 | E49: 19 | F49: 0.878 | G49: 1.428

Sheet Selection intensity curves
B4: proportion selected | C4: p | D4: 99.0%
D6: Infinite population size | G6: Finite Population Size = | J6: 50
B7: Selection threshold | C7: x | D7: =-NORMSINV(D4) -> -2.326 | G7: p corrected | I7: =(D4*J6+0.5)/(J6+(J6*D4)/(2*J6)) -> 0.9901970492
B8: height at threshold | C8: z | D8: =EXP(-0.5*(D7^2))/SQRT(2*PI()) -> 0.0267 | I8: =EXP(-0.5*(-NORMSINV(I7)^2))/SQRT(2*PI()) -> 0.02619300454 | J8: =I8/I7 -> 0.026452 | K8: 0
B9: Selection intensity | C9: i | D9: =D8/D4 -> 0.027 | G9: Corrected for population size | J9: =D9-(J6-J6*D4)/(2*D4*J6*((J6+1)*D9)) -> 0.02324
B12: variance reduction | C12: i(i-x) | D12: =D9*(D9-D7) -> 0.0634
B13: variance of selected group | D13: =1-D12 -> 0.9366
B14: variance in true BV | D14: =(1-D12*C15*C15) -> 0.9487
B15: …………...for accuracy = | C15: 0.9
H99: Infinte PopSize | I99: PopSize =
A100: -3.5 | B100: 0.000872682695 | C100: =D7 -> -2.3263 | D100: 0 | H100: Infinite PopSize | I100: =CONCATENATE(I99,J6) -> PopSize =50
A101: -3.4 | B101: 0.001232219168 | C101: =D7 -> -2.3263 | D101: =VLOOKUP(C101,A100:B170,2,TRUE)-0.01 -> 0.01239453 | F101: 1 | G101: 2.326347874 | H101: 2.66521422 | I101: 2.301045281 | K101: 4 | L101: 1.141595727
A102: -3.3 | B102: 0.001722568939 | C102: =D9 -> 0.0269 | D102: 0.00000000 | F102: 2 | G102: 2.053748911 | H102: 2.420906794 | I102: 2.222471993 | K102: 8 | L102: 1.550981096
A103: -3.2 | B103: 0.002384088201 | C103: =D9 -> 0.0269 | D103: =VLOOKUP(C103,A100:B170,2,TRUE)-0.01 -> 0.38894228 | F103: 3 | G103: 1.880793608 | H103: 2.268065047 | I103: 2.128301214 | K103: 12 | L103: 1.708437007
A104: -3.1 | B104: 0.003266819056 | F104: 4 | G104: 1.750686071 | H104: 2.154344351 | I104: 2.045125916 | K104: 16 | L104: 1.791796019
A105: -3 | B105: 0.004431848412 | F105: 5 | G105: 1.644853627 | H105: 2.062712808 | I105: 1.972407211 | K105: 20 | L105: 1.843399217
A106: -2.9 | B106: 0.00595253242 | F106: 6 | G106: 1.554773595 | H106: 1.985382753 | I106: 1.908019952 | K106: 24 | L106: 1.878489391
A107: -2.8 | B107: 0.007915451583 | F107: 7 | G107: 1.475791028 | H107: 1.918113065 | I107: 1.850206693 | K107: 28 | L107: 1.903899518
A108: -2.7 | B108: 0.01042093481 | F108: 8 | G108: 1.40507156 | H108: 1.858327828 | I108: 1.797657641 | K108: 32 | L108: 1.923149613
A109: -2.6 | B109: 0.01358296923 | F109: 9 | G109: 1.340755034 | H109: 1.804340309 | I109: 1.749401371 | K109: 36 | L109: 1.938237526
A110: -2.5 | B110: 0.01752830049 | F110: 10 | G110: 1.281551566 | H110: 1.754983319 | I110: 1.704706321 | K110: 40 | L110: 1.950381456
A111: -2.4 | B111: 0.02239453029 | F111: 11 | G111: 1.22652812 | H111: 1.709414246 | I111: 1.663010843 | K111: 44 | L111: 1.960366465
A112: -2.3 | B112: 0.02832703774 | F112: 12 | G112: 1.174986792 | H112: 1.667004032 | I112: 1.623875507 | K112: 48 | L112: 1.968721269
A113: -2.2 | B113: 0.03547459285 | F113: 13 | G113: 1.126391129 | H113: 1.627270071 | I113: 1.586950482 | K113: 52 | L113: 1.97581497
A114: -2.1 | B114: 0.04398359598 | F114: 14 | G114: 1.080319341 | H114: 1.589833644 | I114: 1.551952894 | K114: 56 | L114: 1.981913064
A115: -2 | B115: 0.05399096651 | F115: 15 | G115: 1.036433389 | H115: 1.554391835 | I115: 1.518650811 | K115: 60 | L115: 1.987211407
A116: -1.9 | B116: 0.06561581477 | F116: 16 | G116: 0.9944578832 | H116: 1.52069838 | I116: 1.486851702 | K116: 64 | L116: 1.991857647
A117: -1.8 | B117: 0.0789501583 | F117: 17 | G117: 0.9541652531 | H117: 1.488550226 | I117: 1.456393968 | K117: 68 | L117: 1.995965193
A118: -1.7 | B118: 0.09404907738 | F118: 18 | G118: 0.9153650878 | H118: 1.457777875 | I118: 1.427140622 | K118: 72 | L118: 1.999622596
A119: -1.6 | B119: 0.1109208347 | F119: 19 | G119: 0.8778962951 | H119: 1.428238292 | I119: 1.398974502 | K119: 76 | L119: 2.00290001
A120: -1.5 | B120: 0.1295175957 | F120: 20 | G120: 0.8416212336 | H120: 1.399809602 | I120: 1.371794588 | K120: 80 | L120: 2.005853728
A121: -1.4 | B121: 0.1497274656 | F121: 21 | G121: 0.806421247 | H121: 1.372387057 | I121: 1.345513138 | K121: 84 | L121: 2.00852945
A122: -1.3 | B122: 0.171368592 | F122: 22 | G122: 0.7721932142 | H122: 1.345879926 | I122: 1.320053433 | K122: 88 | L122: 2.010964657
A123: -1.2 | B123: 0.194186055 | F123: 23 | G123: 0.7388468492 | H123: 1.320209061 | I123: 1.29534798 | K123: 92 | L123: 2.013190384
A124: -1.1 | B124: 0.217852177 | F124: 24 | G124: 0.7063025628 | H124: 1.295304972 | I124: 1.271337063 | K124: 96 | L124: 2.015232546
A125: -1 | B125: 0.2419707245 | F125: 25 | G125: 0.6744897502 | H125: 1.271106291 | I125: 1.247967577 | K125: 100 | L125: 2.017112952
A126: -0.9 | B126: 0.2660852499 | F126: 26 | G126: 0.6433454054 | H126: 1.247558523 | I126: 1.225192062 | K126: 104 | L126: 2.018850089
A127: -0.8 | B127: 0.2896915528 | F127: 27 | G127: 0.612812991 | H127: 1.224613037 | I127: 1.202967914 | K127: 108 | L127: 2.02045973
A128: -0.7 | B128: 0.3122539334 | F128: 28 | G128: 0.5828415073 | H128: 1.202226232 | I128: 1.181256731 | K128: 112 | L128: 2.021955415
A129: -0.6 | B129: 0.3332246029 | F129: 29 | G129: 0.5533847196 | H129: 1.180358846 | I129: 1.160023755 | K129: 116 | L129: 2.02334883
A130: -0.5 | B130: 0.3520653268 | F130: 30 | G130: 0.5244005127 | H130: 1.158975381 | I130: 1.139237414 | K130: 120 | L130: 2.024650118
A131: -0.4 | B131: 0.3682701403 | F131: 31 | G131: 0.4958503473 | H131: 1.138043619 | I131: 1.118868931 | K131: 124 | L131: 2.025868124
A132: -0.3 | B132: 0.3813878155 | F132: 32 | G132: 0.4676987991 | H132: 1.117534217 | I132: 1.098891984 | K132: 128 | L132: 2.027010595
A133: -0.2 | B133: 0.391042694 | F133: 33 | G133: 0.4399131657 | H133: 1.097420356 | I133: 1.079282428 | K133: 132 | L133: 2.028084346
A134: -0.1 | B134: 0.3969525475 | F134: 34 | G134: 0.4124631294 | H134: 1.077677445 | I134: 1.060018041 | K134: 136 | L134: 2.029095396
A135: 0 | B135: 0.3989422804 | F135: 35 | G135: 0.3853204664 | H135: 1.05828287 | I135: 1.041078317 | K135: 140 | L135: 2.030049081
A136: 0.1 | B136: 0.3969525475 | F136: 36 | G136: 0.3584587933 | H136: 1.03921577 | I136: 1.022444283 | K136: 144 | L136: 2.03095015
A137: 0.2 | B137: 0.391042694 | F137: 37 | G137: 0.3318533464 | H137: 1.020456849 | I137: 1.004098329 | K137: 148 | L137: 2.031802838
A138: 0.3 | B138: 0.3813878155 | F138: 38 | G138: 0.3054807881 | H138: 1.001988211 | I138: 0.986024079 | K138: 152 | L138: 2.032610942
A139: 0.4 | B139: 0.3682701403 | F139: 39 | G139: 0.2793190344 | H139: 0.9837932116 | I139: 0.9682062583 | K139: 156 | L139: 2.033377869
A140: 0.5 | B140: 0.3520653268 | F140: 40 | G140: 0.2533471031 | H140: 0.9658563337 | I140: 0.9506305886 | K140: 160 | L140: 2.034106687
A141: 0.6 | B141: 0.3332246029 | F141: 41 | G141: 0.2275449766 | H141: 0.9481630744 | I141: 0.9332836906 | K141: 164 | L141: 2.034800169
A142: 0.7 | B142: 0.3122539334 | F142: 42 | G142: 0.2018934791 | H142: 0.9306998453 | I142: 0.9161529977 | K142: 168 | L142: 2.035460823
A143: 0.8 | B143: 0.2896915528 | F143: 43 | G143: 0.1763741648 | H143: 0.9134538852 | I143: 0.8992266798 | K143: 172 | L143: 2.036090927
A144: 0.9 | B144: 0.2660852499 | F144: 44 | G144: 0.1509692155 | H144: 0.8964131807 | I144: 0.8824935746 | K144: 176 | L144: 2.036692551
A145: 1 | B145: 0.2419707245 | F145: 45 | G145: 0.1256613469 | H145: 0.8795663966 | I145: 0.8659431263 | K145: 180 | L145: 2.037267584
A146: 1.1 | B146: 0.217852177 | F146: 46 | G146: 0.1004337205 | H146: 0.8629028128 | I146: 0.84956533 | K146: 184 | L146: 2.037817751
A147: 1.2 | B147: 0.194186055 | F147: 47 | G147: 0.0752698621 | H147: 0.8464122669 | I147: 0.8333506816 | K147: 188 | L147: 2.038344631
A148: 1.3 | B148: 0.171368592 | F148: 48 | G148: 0.05015358346 | H148: 0.8300851035 | I148: 0.8172901323 | K148: 192 | L148: 2.038849671
A149: 1.4 | B149: 0.1497274656 | F149: 49 | G149: 0.02506890826 | H149: 0.8139121274 | I149: 0.8013750472 | K149: 196 | L149: 2.039334201
A150: 1.5 | B150: 0.1295175957 | F150: 50 | G150: 0 | H150: 0.7978845608 | I150: 0.7855971673 | K150: 200 | L150: 2.039799447
A151: 1.6 | B151: 0.1109208347 | F151: 51 | G151: -0.02506890826 | H151: 0.7819940048 | I151: 0.7699485747
A152: 1.7 | B152: 0.09404907738 | F152: 52 | G152: -0.05015358346 | H152: 0.7662324032 | I152: 0.7544216606
A153: 1.8 | B153: 0.0789501583 | F153: 53 | G153: -0.0752698621 | H153: 0.7505920102 | I153: 0.739009095
A154: 1.9 | B154: 0.06561581477 | F154: 54 | G154: -0.1004337205 | H154: 0.735065359 | I154: 0.7237037996
A155: 2 | B155: 0.05399096651 | F155: 55 | G155: -0.1256613469 | H155: 0.7196452336 | I155: 0.7084989215
A156: 2.1 | B156: 0.04398359598 | F156: 56 | G156: -0.1509692155 | H156: 0.704324642 | I156: 0.6933878086
A157: 2.2 | B157: 0.03547459285 | F157: 57 | G157: -0.1763741648 | H157: 0.6890967906 | I157: 0.6783639865
A158: 2.3 | B158: 0.02832703774 | F158: 58 | G158: -0.2018934791 | H158: 0.6739550604 | I158: 0.6634211363
A159: 2.4 | B159: 0.02239453029 | F159: 59 | G159: -0.2275449766 | H159: 0.6588929839 | I159: 0.6485530731
A160: 2.5 | B160: 0.01752830049 | F160: 60 | G160: -0.2533471031 | H160: 0.6439042225 | I160: 0.6337537258
A161: 2.6 | B161: 0.01358296923 | F161: 61 | G161: -0.2793190344 | H161: 0.6289825451 | I161: 0.6190171159
A162: 2.7 | B162: 0.01042093481 | F162: 62 | G162: -0.3054807881 | H162: 0.6141218067 | I162: 0.6043373388
A163: 2.8 | B163: 0.007915451583 | F163: 63 | G163: -0.3318533464 | H163: 0.5993159273 | I163: 0.5897085425
A164: 2.9 | B164: 0.00595253242 | F164: 64 | G164: -0.3584587933 | H164: 0.5845588705 | I164: 0.5751249089
A165: 3 | B165: 0.004431848412 | F165: 65 | G165: -0.3853204664 | H165: 0.5698446222 | I165: 0.5605806325
A166: 3.1 | B166: 0.003266819056 | F166: 66 | G166: -0.4124631294 | H166: 0.5551671686 | I166: 0.5460698997
A167: 3.2 | B167: 0.002384088201 | F167: 67 | G167: -0.4399131657 | H167: 0.5405204738 | I167: 0.5315868673
A168: 3.3 | B168: 0.001722568939 | F168: 68 | G168: -0.4676987991 | H168: 0.5258984552 | I168: 0.5171256397
A169: 3.4 | B169: 0.001232219168 | F169: 69 | G169: -0.4958503473 | H169: 0.5112949594 | I169: 0.5026802443
A170: 3.5 | B170: 0.000872682695 | F170: 70 | G170: -0.5244005127 | H170: 0.4967037346 | I170: 0.4882446062
F171: 71 | G171: -0.5533847196 | H171: 0.4821184018 | I171: 0.4738125196
F172: 72 | G172: -0.5828415073 | H172: 0.4675324235 | I172: 0.4593776176
F173: 73 | G173: -0.612812991 | H173: 0.4529390684 | I173: 0.4449333382
F174: 74 | G174: -0.6433454054 | H174: 0.4383313728 | I174: 0.4304728865
F175: 75 | G175: -0.6744897502 | H175: 0.4237020969 | I175: 0.4159891923
F176: 76 | G176: -0.7063025628 | H176: 0.4090436755 | I176: 0.4014748621
F177: 77 | G177: -0.7388468492 | H177: 0.3943481611 | I177: 0.3869221239
F178: 78 | G178: -0.7721932142 | H178: 0.3796071587 | I178: 0.3723227633
F179: 79 | G179: -0.806421247 | H179: 0.3648117494 | I179: 0.3576680493
F180: 80 | G180: -0.8416212336 | H180: 0.3499524005 | I180: 0.3429486469
F181: 81 | G181: -0.8778962951 | H181: 0.3350188586 | I181: 0.3281545128
F182: 82 | G182: -0.9153650878 | H182: 0.3200000213 | I182: 0.3132747707
F183: 83 | G183: -0.9541652531 | H183: 0.3048837812 | I183: 0.2982975597
F184: 84 | G184: -0.9944578832 | H184: 0.2896568343 | I184: 0.283209848
F185: 85 | G185: -1.036433389 | H185: 0.2743044415 | I185: 0.267997202
F186: 86 | G186: -1.080319341 | H186: 0.258810128 | I186: 0.2526434944
F187: 87 | G187: -1.126391129 | H187: 0.2431552979 | I187: 0.2371305318
F188: 88 | G188: -1.174986792 | H188: 0.2273187316 | I188: 0.2214375691
F189: 89 | G189: -1.22652812 | H189: 0.211275918 | I189: 0.2055406659
F190: 90 | G190: -1.281551566 | H190: 0.1949981466 | I190: 0.1894118134
F191: 91 | G191: -1.340755034 | H191: 0.1784512394 | I191: 0.173017718
F192: 92 | G192: -1.40507156 | H192: 0.1615937242 | I192: 0.1563180557
F193: 93 | G193: -1.475791028 | H193: 0.1443741017 | I193: 0.1392628693
F194: 94 | G194: -1.554773595 | H194: 0.1267265587 | I194: 0.1217885076
F195: 95 | G195: -1.644853627 | H195: 0.108563832 | I195: 0.1038109059
F196: 96 | G196: -1.750686071 | H196: 0.08976434794 | I196: 0.08521357983
F197: 97 | G197: -1.880793608 | H197: 0.07014634167 | I197: 0.0658237489
F198: 98 | G198: -2.053748911 | H198: 0.0494062611 | I198: 0.0453565713
F199: 99 | G199: -2.326347874 | H199: 0.02692135576 | I199: 0.02324288163
F200: 100

Sheet correlated EBV
B4: proportion selected | C4: p | D4: 50.00% | G4: Population Size = | I4: =H5*H6*H7 -> 200
G5: Nr Sires nhs | H5: 10
D6: Infinite population size | G6: Nr dams/sire | H6: 5
G7: Nr offspring per dam | H7: 4
B8: Selection threshold | C8: x | D8: =-NORMSINV(D4) -> 0.000 | G8: FS EBV correlation | H8: 0.621
B9: height at threshold | C9: z | D9: =EXP(-0.5*(D8^2))/SQRT(2*PI()) -> 0.3989 | G9: HS EBV Correlation | H9: 0.415
B10: Selection intensity | C10: i | D10: =D9/D4 -> 0.798 | G10: Corrected for population size | J10: =D10-(I4-I4*D4)/(2*D4*I4*((I4+1)*D10)) -> 0.795
G12: t_average | H12: =(H8*(H7-1)+H9*H7*(H6-1))/(H7*H5*H6-1) -> 0.04269550292
G13: Corrected for related EBV | J13: =SQRT(1-H12)*J10 -> 0.778
A101: -3.5 | B101: 0.000872682695 | C101: =D8 -> 0.0000 | D101: 0
A102: -3.4 | B102: 0.001232219168 | C102: =D8 -> 0.0000 | D102: =VLOOKUP(C102,A101:B171,2,TRUE)-0.01 -> 0.38894228
A103: -3.3 | B103: 0.001722568939 | C103: =D10 -> 0.7979 | D103: 0.00000000
A104: -3.2 | B104: 0.002384088201 | C104: =D10 -> 0.7979 | D104: =VLOOKUP(C104,A101:B171,2,TRUE)-0.01 -> 0.30225393
A105: -3.1 | B105: 0.003266819056
A106: -3 | B106: 0.004431848412
A107: -2.9 | B107: 0.00595253242
A108: -2.8 | B108: 0.007915451583
A109: -2.7 | B109: 0.01042093481
A110: -2.6 | B110: 0.01358296923
A111: -2.5 | B111: 0.01752830049
A112: -2.4 | B112: 0.02239453029
A113: -2.3 | B113: 0.02832703774
A114: -2.2 | B114: 0.03547459285
A115: -2.1 | B115: 0.04398359598
A116: -2 | B116: 0.05399096651
A117: -1.9 | B117: 0.06561581477
A118: -1.8 | B118: 0.0789501583
A119: -1.7 | B119: 0.09404907738
A120: -1.6 | B120: 0.1109208347
A121: -1.5 | B121: 0.1295175957
A122: -1.4 | B122: 0.1497274656
A123: -1.3 | B123: 0.171368592
A124: -1.2 | B124: 0.194186055
A125: -1.1 | B125: 0.217852177
A126: -1 | B126: 0.2419707245
A127: -0.9 | B127: 0.2660852499
A128: -0.8 | B128: 0.2896915528
A129: -0.7 | B129: 0.3122539334
A130: -0.6 | B130: 0.3332246029
A131: -0.5 | B131: 0.3520653268
A132: -0.4 | B132: 0.3682701403
A133: -0.3 | B133: 0.3813878155
A134: -0.2 | B134: 0.391042694
A135: -0.1 | B135: 0.3969525475
A136: 0 | B136: 0.3989422804
A137: 0.1 | B137: 0.3969525475
A138: 0.2 | B138: 0.391042694
A139: 0.3 | B139: 0.3813878155
A140: 0.4 | B140: 0.3682701403
A141: 0.5 | B141: 0.3520653268
A142: 0.6 | B142: 0.3332246029
A143: 0.7 | B143: 0.3122539334
A144: 0.8 | B144: 0.2896915528
A145: 0.9 | B145: 0.2660852499
A146: 1 | B146: 0.2419707245
A147: 1.1 | B147: 0.217852177
A148: 1.2 | B148: 0.194186055
A149: 1.3 | B149: 0.171368592
A150: 1.4 | B150: 0.1497274656
A151: 1.5 | B151: 0.1295175957
A152: 1.6 | B152: 0.1109208347
A153: 1.7 | B153: 0.09404907738
A154: 1.8 | B154: 0.0789501583
A155: 1.9 | B155: 0.06561581477
A156: 2 | B156: 0.05399096651
A157: 2.1 | B157: 0.04398359598
A158: 2.2 | B158: 0.03547459285
A159: 2.3 | B159: 0.02832703774
A160: 2.4 | B160: 0.02239453029
A161: 2.5 | B161: 0.01752830049
A162: 2.6 | B162: 0.01358296923
A163: 2.7 | B163: 0.01042093481
A164: 2.8 | B164: 0.007915451583
A165: 2.9 | B165: 0.00595253242
A166: 3 | B166: 0.004431848412
A167: 3.1 | B167: 0.003266819056
A168: 3.2 | B168: 0.002384088201
A169: 3.3 | B169: 0.001722568939
A170: 3.4 | B170: 0.001232219168
A171: 3.5 | B171: 0.000872682695
